Cogmind - Beta 17.1 @@@ ROGUE MODE // 2026.09.03 @ 17:27:31 Player: lxealomych Result: Self-destructed Performance ------------- Evolutions (3) 1500 Regions Visited (8) 1600 Robots Destroyed (129) 645 Value Destroyed (3379) 3379 Prototype IDs (1) 20 Alien Tech Used (0) 0 Bonus (360) 360 TOTAL SCORE: 7504 Bonus ------- High Alert Combat Kills 2 Follower Combat Kills 127 Aligned with FarCom 300 Friendly Fire -69 Cogmind --------- Core Integrity 245/700 Matter 61/300 Energy 150/150 System Corruption 3% Temperature Cool (57) Movement Core (150) Ox2 Location -7/Factory Parts ------- > --- POWER (1) -------- Micro Nuclear Core > --- PROPULSION (4) --- (None) > --- UTILITY (6) ------ Advanced Visual Processing Unit Hacking Suite > --- WEAPON (2) ------- Makeshift Hammer > --- INVENTORY (5) ---- Micro Nuclear Core Improved Cooling System Improved Signal Interpreter Peak State ------------ > --- POWER ------------ Light Nuclear Core > --- PROPULSION ------- Light Treads Light Treads > --- UTILITY ---------- Improved Cooling System Large Storage Unit Structural Scanner Advanced Visual Processing Unit > --- WEAPON ----------- YOLO Cannon > --- INVENTORY -------- Nuclear Core Advanced Treads Improved Hover Unit Medium Storage Unit Improved Sensor Array Signal Interpreter Heavy EM Pulse Gun Shock Rifle Shock Bomb Launcher Shock Bomb Launcher Rocket Launcher Rocket Launcher Makeshift Hammer [Rating: 37] Favorites ----------- Power Improved Ion Engine Engine Improved Ion Engine Power Core Light Nuclear Core Propulsion Light Treads Treads Light Treads Hover Unit Airjet Utility Large Storage Unit Device Structural Scanner Storage Large Storage Unit Processor Advanced Visual Processing Unit Hackware Hacking Suite Protection Heavy Armor Plating Weapon Light Assault Rifle Energy Gun Beam Rifle Energy Cannon YOLO Cannon Ballistic Gun Light Assault Rifle Ballistic Cannon Improved Light Cannon Launcher Shock Bomb Launcher Impact Weapon Makeshift Hammer Build | -11 -10 -10 -9 -9 -9 -8 -8 -7 ------- Run | Yrd Mat Min Mat Min Exi Min Mat Fac Slots Evolved 6 | . . . 2 . . . 2 2 Power . | . . . . . . . . . Propulsion 2 | . . . 1 . . . 1 . Utility 4 | . . . 1 . . . 1 2 Weapon . | . . . . . . . . . Parts Attached 58 | 6 5 . 18 1 1 1 19 7 Power 6 | 1 . . 3 . . . 2 . Engine 4 | 1 . . 3 . . . . . Core 2 | . . . . . . . 2 . Reactor . | . . . . . . . . . Propulsion 15 | 2 . . 7 . . . 5 1 Treads 13 | 2 . . 7 . . . 4 . Leg . | . . . . . . . . . Wheel . | . . . . . . . . . Hover 2 | . . . . . . . 1 1 Flight . | . . . . . . . . . Utility 18 | 1 3 . 3 . . . 7 4 Device 5 | . . . . . . . 4 1 Storage 3 | 1 2 . . . . . . . Processor 1 | . . . . . . . 1 . Hackware 2 | . . . . . . . 1 1 Protection 7 | . 1 . 3 . . . 1 2 Artifact . | . . . . . . . . . Weapon 19 | 2 2 . 5 1 1 1 5 2 Energy Gun 6 | 1 . . 2 . . . 2 1 Energy Cannon 1 | . . . . . 1 . . . Ballistic Gun 4 | 1 1 . 2 . . . . . Ballistic Cannon 1 | . . . 1 . . . . . Launcher 6 | . 1 . . 1 . 1 2 1 Special Weapon . | . . . . . . . . . Impact Weapon 1 | . . . . . . . 1 . Slashing Weapon . | . . . . . . . . . Piercing Weapon . | . . . . . . . . . Special Melee Weapon . | . . . . . . . . . Unidentified Prototypes 1 | . . . . . 1 . . . Corrupted Parts 3 | . . . . . . . 3 . System Corruption 16 | . . . . . . . 16 . Parts Lost 22 | . . . 2 . . . 11 9 Power 2 | . . . . . . . 2 . Propulsion 7 | . . . . . . . 5 2 Utility 9 | . . . 2 . . . 2 5 Weapon 4 | . . . . . . . 2 2 Highest Loss Streak 5 | . . . 1 . . . 3 5 To Critical Strikes . | . . . . . . . . . Average Backups 11 | . 8 11 13 13 14 14 13 4 Power 2 | . 1 2 1 2 3 3 2 1 Propulsion . | . . 1 . 1 1 1 1 . Utility 4 | . 4 6 7 5 5 5 4 2 Weapon 3 | . 1 2 3 5 5 5 5 1 Tool/Special . | . . . . . . . . . Unused Backups 19 | . 1 . 4 1 . . 9 4 Power 5 | . 1 . . . . . 3 1 Propulsion 2 | . . . . . . . 2 . Utility 8 | . . . 3 . . . 3 2 Weapon 4 | . . . 1 1 . . 1 1 Tool/Special . | . . . . . . . . . Average Slot Usage (%) 84 | . 95 100 87 88 87 88 75 72 Engine 8 | . 14 14 11 11 11 11 3 . Core 2 | . . . . . . . 5 7 Treads 25 | . 28 28 33 33 33 33 20 . Hover 1 | . . . . . . . . 12 Device 5 | . . . . . . . 15 12 Storage 10 | . 14 14 11 11 11 11 9 . Processor 1 | . . . . . . . 4 7 Hackware 1 | . . . . . . . . 14 Protection 8 | . 9 14 10 11 11 11 3 6 Energy Gun 2 | . 1 . 5 3 . . 4 . Ballistic Gun 10 | . 19 26 14 11 10 10 2 . Launcher 5 | . 7 1 1 7 11 11 4 . Impact Weapon 1 | . . . . . . . 1 7 Peak Build Rating 37 | 6 8 8 19 20 35 22 37 34 Average Rating 18 | 4 7 8 17 19 20 21 24 26 On Entrance 14 | . 6 8 8 18 20 21 21 27 Avg Prop Armor Cover (%) . | . . . . . . . . . Naked Turns . | . . . . . . . . . Heaviest Build 54 | 12 30 32 49 51 51 54 53 17 Greatest Support 83 | 40 40 40 60 60 60 60 83 14 Greatest Overweight (x) 3 | . . . . . . . 2 3 Average Overweight (x) . | . . . . . . . . . Largest Inventory Capacity 15 | 8 15 15 15 15 15 15 15 15 Average Capacity 13 | 6 10 15 15 15 15 15 15 5 Most Carried 15 | 2 11 12 15 15 15 15 15 13 Average Carried 12 | . 8 11 14 13 14 15 14 4 Final Capacity 15 | 8 15 15 15 15 15 15 15 5 Final Carried 15 | 2 11 12 13 15 15 15 14 3 Class Distribution -------------------- 40% | Scavenger-Mutant 37% | Mutant 11% | Skirmisher 6% | Hacker-Scout Dominant Class ---------------- Mutant | -10/Materials Mutant | -10/Mines Scavenger-Mutant | -9/Materials Scavenger-Mutant | -9/Mines Scavenger-Mutant | -9/Exiles Scavenger-Mutant | -8/Mines Skirmisher | -8/Materials Hacker-Scout | -7/Factory Resources | -11 -10 -10 -9 -9 -9 -8 -8 -7 ----------- Run | Yrd Mat Min Mat Min Exi Min Mat Fac Matter Collected 2071 | 167 287 30 722 24 . 189 542 110 Remotely . | . . . . . . . . . Salvage Created 4277 | . 174 89 1205 74 . 469 2012 254 Parts 250 | . 24 10 81 10 . 16 101 8 Haulers Intercepted 9 | . 1 . 3 . . . 3 2 Recyclers Shooed 2 | . . . . . . . 2 . Parts Field Recycled . | . . . . . . . . . Retrieved Matter . | . . . . . . . . . Parts Self-Destructed . | . . . . . . . . . Prevented . | . . . . . . . . . Parts Restored . | . . . . . . . . . Kills | -11 -10 -10 -9 -9 -9 -8 -8 -7 ------- Run | Yrd Mat Min Mat Min Exi Min Mat Fac Combat Hostiles Destroyed 86 | . 7 6 29 4 . 8 29 3 Melee 6 | . . . . . . . 6 . Guns 37 | . 1 3 27 1 . 1 4 . Cannons 1 | . . . . . . . 1 . AOE 31 | . 6 3 2 3 . 5 9 3 Classes Destroyed 16 | . 5 1 3 . . 3 2 2 Worker 3 | . . . . . . 2 1 . Builder 8 | . 1 . . . . . 6 1 Tunneler 1 | . . . . . . . 1 . Hauler 9 | . 1 . 3 . . . 3 2 Recycler 5 | . . . . . . 1 4 . Mechanic 1 | . . . 1 . . . . . Operator 10 | . 1 . 3 . . . 3 3 Watcher 7 | . . . 3 . . . 4 . Swarmer 27 | . 3 3 7 4 . 2 8 . Grunt 40 | . 4 2 15 . . 5 13 1 Brawler 2 | . . . . . . 1 1 . Duelist 1 | . . . . . . . 1 . Sentry 13 | . . . 7 . . . 6 . Hunter 1 | . . . . . . . . 1 Programmer 1 | . . . . . . . . 1 Assembled 1 | . . 1 . . . . . . Best Kill Streak 5 | . 3 3 5 4 . 4 5 2 Combat Bots Only 4 | . 3 3 4 4 . 3 3 2 Max Kills in Single Turn 3 | . 2 2 1 3 . 3 3 2 Gunslinging 1 | . . 1 . . . . . . Exploded 3 | . 2 1 1 3 . 2 2 2 Melee 1 | . . . . . . . 1 . Uniques/NPCs Destroyed . | . . . . . . . . . Combat | -11 -10 -10 -9 -9 -9 -8 -8 -7 -------- Run | Yrd Mat Min Mat Min Exi Min Mat Fac Hostile Shots Fired 495 | . 13 16 150 10 . 22 148 136 Missed 175 | . 6 3 53 3 . 6 50 54 Hits 320 | . 7 13 97 7 . 16 98 82 Melee 1 | . . . . . . . 1 . Projectile 319 | . 7 13 97 7 . 16 97 82 Critical Strikes 10 | . . . 3 . . . 6 1 Damage Taken 4736 | . 97 133 1318 56 . 235 1799 1098 Core 860 | . 29 8 117 . . . 251 455 Absorbed by Shields . | . . . . . . . . . Core Remaining (%) 77 | 100 . 85 . . . 70 54 . Volleys Fired 246 | . 20 10 117 3 . 21 61 14 Largest 2 | . 2 2 2 2 . 2 2 1 Hottest 112 | . 50 50 112 59 . 72 100 50 Shots Fired 431 | . 40 20 218 4 . 35 101 13 Gun 329 | . 28 15 206 3 . 18 57 2 Cannon 7 | . . . 4 . . . 3 . Launcher 95 | . 12 5 8 1 . 17 41 11 Special . | . . . . . . . . . Kinetic 277 | . 28 15 173 3 . 18 40 . Thermal 40 | . . . 37 . . . 3 . Explosive 36 | . 12 5 8 . . . . 11 Electromagnetic 78 | . . . . 1 . 17 58 2 Robot Hit Streak 19 | . 4 5 19 4 . 5 8 7 Robot Miss Streak 6 | . 2 1 6 1 . 4 4 1 Penetration Max . | . . . . . . . . . Secondary Targets 1 | . . 1 . . . . . . Max Gunslinging Chain 1 | . . 1 . . . . . . Shots Hit Robots 299 | . 20 14 159 2 . 15 71 18 Core Hits 178 | . 19 9 73 4 . 14 49 10 Critical Kills 3 | . 1 . . . . . 2 . Critical Parts Destroyed 9 | . . . 2 . . . 2 5 Critical Strikes 19 | . 1 . 8 . . . 5 5 Burn 5 | . . . 5 . . . . . Destroy 3 | . 1 . 2 . . . . . Blast 1 | . . . 1 . . . . . Smash 10 | . . . . . . . 5 5 Melee Attacks 64 | . . . . . . . 41 23 Impact 64 | . . . . . . . 41 23 Slashing . | . . . . . . . . . Piercing . | . . . . . . . . . Sneak Attacks 10 | . . . . . . . 4 6 Combat Hostiles . | . . . . . . . . . Follow-up Attacks . | . . . . . . . . . Damage Inflicted 9115 | . 638 324 2389 89 . 829 3597 1249 Guns 2840 | . 109 92 1921 13 . 116 561 28 Cannons 178 | . . . 88 . . . 90 . Explosions 4130 | . 529 232 359 76 . 709 1745 480 Melee 1942 | . . . . . . . 1201 741 Ramming 25 | . . . 21 . . 4 . . Kinetic 2310 | . 109 92 1583 13 . 116 397 . Thermal 1002 | . . . 426 . . 126 450 . Explosive 1600 | . 529 232 359 . . . . 480 Electromagnetic 2236 | . . . . 76 . 583 1549 28 Impact 1942 | . . . . . . . 1201 741 Slashing . | . . . . . . . . . Piercing . | . . . . . . . . . Highest Corruption 18 | . . . . . . . 18 3 Average Corruption 6 | . . . . . . . 7 2 Corruption Purged . | . . . . . . . . . Corruption Blocked . | . . . . . . . . . Effects 70 | . . . . . . . 64 6 Message Errors 16 | . . . . . . . 14 2 Matter Fused 19 | . . . . . . . 18 1 Heat Flow Errors 10 | . . . . . . . 9 1 Energy Discharges 7 | . . . . . . . 7 . Parts Rejected 1 | . . . . . . . 1 . Parts Fused 1 | . . . . . . . 1 . Data Loss (minor) 8 | . . . . . . . 7 1 Data Loss (major) 4 | . . . . . . . 4 . Alerts 3 | . . . . . . . 3 . Weapon Failures 1 | . . . . . . . . 1 Overload Shots . | . . . . . . . . . Overflow Damage 1097 | . 7 . . . . 33 561 496 Projectiles . | . . . . . . . . . Explosions 172 | . 7 . . . . 33 132 . Melee 925 | . . . . . . . 429 496 Knockbacks 7 | . . . . . . . 5 2 Impact 7 | . . . . . . . 5 2 Kinetic . | . . . . . . . . . Secondary . | . . . . . . . . . Self-Inflicted Damage 676 | . 36 . 118 . . 53 272 197 Shots 31 | . 2 . 6 . . 4 13 6 Rammed 2 | . . . 1 . . 1 . . Targets Rammed 3 | . . . 1 . . 2 . . Kicked . | . . . . . . . . . Crushed 1 | . . . . . . 1 . . Highest Temperature 314 | . 16 49 314 9 . 108 242 238 Average Temperature 52 | . 8 18 57 5 . 40 89 67 Received Heat Transfer 1413 | . 12 18 477 . . 45 603 258 Effects 5 | . . . 5 . . . . . Interference 5 | . . . 5 . . . . . Siege Activations . | . . . . . . . . . Martial Activations . | . . . . . . . . . Shielding Activations . | . . . . . . . . . Robots Disrupted . | . . . . . . . . . Combat Hostiles . | . . . . . . . . . Robots Corrupted 19 | . . . . . . 2 12 5 Combat Hostiles 11 | . . . . . . 2 9 . Parts Fried 27 | . . . . . . 1 18 8 Impact Corruptions 31 | . . . . . . . 16 15 Robots Melted . | . . . . . . . . . Combat Hostiles . | . . . . . . . . . Parts Melted 5 | . . . 3 . . . 2 . Heat Transferred 2176 | . . . 1406 . . 100 670 . Parts Sabotaged . | . . . . . . . . . Parts Stolen . | . . . . . . . . . Parts Stripped . | . . . . . . . . . Power Chain Reactions 10 | . . . . . . 2 8 . Alert | -11 -10 -10 -9 -9 -9 -8 -8 -7 ------- Run | Yrd Mat Min Mat Min Exi Min Mat Fac Maximum Alert Level 2 | . . . 1 1 . 1 2 . Low Security (%) 62 | 100 100 100 26 92 . 97 27 100 Level 1 37 | . . . 73 7 . 2 71 . Level 2 . | . . . . . . . 1 . Level 3 . | . . . . . . . . . Level 4 . | . . . . . . . . . Level 5 . | . . . . . . . . . High Security . | . . . . . . . . . Max Security . | . . . . . . . . . Peak Influence 415 | . 111 70 397 214 . 219 415 186 Initial 186 | . . . 18 151 . . 80 186 Average 151 | . 23 18 246 126 . 22 253 84 Influence Increases 3533 | . 339 144 937 253 . 329 1133 398 Destroy 0b10 Robot/C 1800 | . 140 100 580 160 . 180 580 60 Destroy 0b10 Robot/NC 225 | . 15 . 50 5 . 15 110 30 Destroy Leader 442 | . 42 20 162 20 . 30 134 34 Allied During Kill 31 | . . . . 29 . 2 . . Successful Hack 32 | . 12 . 12 . . . 8 . Disable Machine 285 | . 45 . 30 30 . 30 105 45 Destroy Structure 298 | . 70 24 43 9 . 12 76 64 Partial Spotted 45 | . . . 15 . . . 15 15 Lose Combat Pursuer 375 | . 15 . 45 . . 60 105 150 Influence Decreases 3407 | . 339 96 597 563 78 122 928 684 Entered New Map 698 | . . . 30 237 78 . 127 226 Time Decay 2469 | . 339 96 547 326 . 102 691 368 Lost Part 220 | . . . 20 . . . 110 90 Lost Ally 20 | . . . . . . 20 . . Squads Dispatched 18 | . 3 . 5 1 . . 3 6 Investigation 5 | . 3 . 1 . . . . 1 Extermination 3 | . . . . . . . . 3 Reinforcement 8 | . . . 4 . . . 2 2 Assault 2 | . . . . 1 . . 1 . Garrison . | . . . . . . . . . Intercept . | . . . . . . . . . Searches Triggered . | . . . . . . . . . Construction Impeded 2 | . . . 1 . . . 1 . Haulers Reinforced . | . . . . . . . . . Active Scanning Responses . | . . . . . . . . . Cargo Convoy Interrupts . | . . . . . . . . . Stealth | -11 -10 -10 -9 -9 -9 -8 -8 -7 --------- Run | Yrd Mat Min Mat Min Exi Min Mat Fac Distress Signals 10 | . . . 4 . . . 4 2 Communications Jammed . | . . . . . . . . . Distress Signals . | . . . . . . . . . Times Spotted 141 | . 10 11 47 4 . 7 43 19 Peak Tracking Total 18 | . 3 18 5 4 . 3 4 5 Tactical Retreats 19 | . 1 . 3 . . 2 7 6 Traps | -11 -10 -10 -9 -9 -9 -8 -8 -7 ------- Run | Yrd Mat Min Mat Min Exi Min Mat Fac Traps Triggered 5 | . 2 . . . . . 2 1 Indirectly . | . . . . . . . . . Trap Hack Attempts . | . . . . . . . . . Triggered . | . . . . . . . . . Disarmed 2 | . 1 . 1 . . . . . Reprogrammed . | . . . . . . . . . Reused . | . . . . . . . . . Traps Extracted . | . . . . . . . . . Installed . | . . . . . . . . . Triggered . | . . . . . . . . . Machines | -11 -10 -10 -9 -9 -9 -8 -8 -7 ---------- Run | Yrd Mat Min Mat Min Exi Min Mat Fac Machines Disabled 19 | . 3 . 2 2 . 2 7 3 Max in Single Turn 2 | . 2 . 1 . . 2 2 1 Machines Repaired . | . . . . . . . . . Machines Dismantled . | . . . . . . . . . Machines Sabotaged . | . . . . . . . . . Overloaded Fab Kills . | . . . . . . . . . Hacking | -11 -10 -10 -9 -9 -9 -8 -8 -7 --------- Run | Yrd Mat Min Mat Min Exi Min Mat Fac Machines Accessed 23 | . 9 . 6 . . . 6 2 Terminals 17 | . 7 . 4 . . . 4 2 Fabricators . | . . . . . . . . . Repair Stations . | . . . . . . . . . Recycling Units 4 | . 2 . 1 . . . 1 . Scanalyzers 2 | . . . 1 . . . 1 . Garrison Access . | . . . . . . . . . Total Hacks 56 | . 21 . 14 . . . 17 4 Successful 20 | . 7 . 8 . . . 5 . Failed 35 | . 13 . 6 . . . 12 4 Catastrophic 9 | . 3 . 1 . . . 3 2 Database Lockouts 1 | . 1 . . . . . . . Manual 45 | . 17 . 11 . 1 . 12 4 Terminals 42 | . 17 . 9 . . . 12 4 Fabricators . | . . . . . . . . . Repair Stations . | . . . . . . . . . Recycling Units 9 | . 4 . 3 . . . 2 . Scanalyzers 5 | . . . 2 . . . 3 . Garrison Access . | . . . . . . . . . Terminal Hacks 13 | . 6 . 5 . . . 2 . Robot Analysis 6 | . 3 . 2 . . . 1 . Branch Access Points 1 | . . . . . . . 1 . Terminal Index 2 | . 1 . 1 . . . . . Disarm Traps 2 | . 1 . 1 . . . . . Hauler Manifests 2 | . 1 . 1 . . . . . Fabricator Hacks . | . . . . . . . . . Repair Station Hacks . | . . . . . . . . . Recycling Unit Hacks 3 | . 1 . 1 . . . 1 . Retrieve Components 3 | . 1 . 1 . . . 1 . Scanalyzer 4 | . . . 2 . . . 2 . Insert Component 2 | . . . 1 . . . 1 . Analyze 2 | . . . 1 . . . 1 . Garrison Access Hacks . | . . . . . . . . . Unauthorized Hacks . | . . . . . . . . . Terminals . | . . . . . . . . . Fabricators . | . . . . . . . . . Repair Stations . | . . . . . . . . . Recycling Units . | . . . . . . . . . Scanalyzers . | . . . . . . . . . Garrison Access . | . . . . . . . . . Data Cores Recovered 3 | . . . 1 . . . 1 1 Used 1 | . . . . . . . . 1 Hacking Detections 17 | . 7 . 5 . . . 4 1 Full Trace Events 3 | . 2 . 1 . . . . . Feedback Events . | . . . . . . . . . Feedback Blocked . | . . . . . . . . . Robot Schematics Acquired . | . . . . . . . . . Robots Built . | . . . . . . . . . Authchips . | . . . . . . . . . Time . | . . . . . . . . . Total Robot Build Rating . | . . . . . . . . . Part Schematics Acquired 2 | . . . 1 . . . 1 . Parts Built . | . . . . . . . . . Authchips . | . . . . . . . . . Time . | . . . . . . . . . Total Part Build Rating . | . . . . . . . . . Part Studies Acquired . | . . . . . . . . . Parts Repaired . | . . . . . . . . . Time . | . . . . . . . . . Parts Recycled . | . . . . . . . . . Recycled Matter . | . . . . . . . . . Retrieved Matter . | . . . . . . . . . Retrieved Components 25 | . 7 . 9 . . . 9 . Parts Scanalyzed 2 | . . . 1 . . . 1 . Part Schematics Acquired 2 | . . . 1 . . . 1 . Parts Damaged 1 | . . . . . . . 1 . Bothacking | -11 -10 -10 -9 -9 -9 -8 -8 -7 ------------ Run | Yrd Mat Min Mat Min Exi Min Mat Fac Used RIF Installer . | . . . . . . . . . Robots Hacked . | . . . . . . . . . Non-combat . | . . . . . . . . . Combat . | . . . . . . . . . Robot Hacks Applied . | . . . . . . . . . Relay Couplers Released . | . . . . . . . . . Fabnet Peak Effective % . | . . . . . . . . . Robots Rewired . | . . . . . . . . . Allies Hacked . | . . . . . . . . . Hacks Repelled . | . . . . . . . . . Allies | -11 -10 -10 -9 -9 -9 -8 -8 -7 -------- Run | Yrd Mat Min Mat Min Exi Min Mat Fac Total Allies 3 | . . . . 3 . . . . Largest Group 3 | . . . . 3 3 1 . . Highest-Rated Group 77 | . . . . 77 77 31 . . Highest-Rated Ally 31 | . . . . 31 31 31 . . Total Orders . | . . . . . . . . . Ally Attacks 26 | . . . . 23 . 3 . . Total Damage 355 | . . . . 334 . 21 . . Kills 6 | . . . . 5 . 1 . . Allies Corrupted . | . . . . . . . . . Allies Melted . | . . . . . . . . . Intel | -11 -10 -10 -9 -9 -9 -8 -8 -7 ------- Run | Yrd Mat Min Mat Min Exi Min Mat Fac Active Infowar (turns) 2861 | . . . . . . . 2011 850 Optics 2267 | . . . . . . . 1417 850 Structural 2787 | . . . . . . . 2001 786 Robot Analysis Total 5 | . 3 . 2 . . . . . Derelict Logs Recovered 3 | . . 1 . 2 . . . . Drone Launches . | . . . . . . . . . Drone Recoveries . | . . . . . . . . . Exploration | -11 -10 -10 -9 -9 -9 -8 -8 -7 ------------- Run | Yrd Mat Min Mat Min Exi Min Mat Fac Turns Passed 9718 | 67 1589 422 1911 730 356 981 2812 850 Spaces Moved 5634 | 37 880 244 917 449 219 548 1308 1032 Core 5 | 2 . . . . . . . 3 Treads 4600 | 35 880 244 917 449 219 548 1308 . Legs . | . . . . . . . . . Wheels . | . . . . . . . . . Hover 1029 | . . . . . . . . 1029 Flight . | . . . . . . . . . Fastest Speed 50 | 50 160 160 160 160 160 160 160 56 Average Speed 147 | 154 160 160 160 160 160 160 178 66 Slowest Speed 320 | 160 160 160 160 160 160 160 320 200 Overloaded Moves . | . . . . . . . . . Propulsion Burnouts . | . . . . . . . . . Robots Hopped . | . . . . . . . . . Potential Cave-ins . | . . . . . . . . . Cave-ins Triggered . | . . . . . . . . . Exploration Rate (%) 64 | 3 98 66 72 82 62 90 77 29 Regions Visited 8 Branch Regions 4 Pre-discovered Areas 1 | . . . . 1 . . . . Known Exits Taken . | . . . . . . . . . Unknown Exits Taken 8 | 1 1 1 1 1 1 1 1 . Scrap Searched 6 | . . 1 . 4 . 1 . . Spaces Dug 11 | . . . . . . . 3 8 Terrain Destroyed 339 | . 75 45 50 . . 14 85 70 Melee 11 | . . . . . . . 3 8 Projectile 1 | . . . . . . . 1 . AOE 327 | . 75 45 50 . . 14 81 62 Terrain Rammed . | . . . . . . . . . Walls Destroyed . | . . . . . . . . . Machines Disabled . | . . . . . . . . . Actions | -11 -10 -10 -9 -9 -9 -8 -8 -7 --------- Run | Yrd Mat Min Mat Min Exi Min Mat Fac Total 6596 | 44 1028 258 1170 457 226 615 1635 1163 Wait 467 | . 110 3 79 1 . 43 165 66 Move 5626 | 36 879 243 916 448 218 547 1307 1032 Hop . | . . . . . . . . . Pick Up 50 | 2 11 1 13 3 . . 17 3 Fast Attach 22 | 6 . . 2 . 3 . 8 3 Attach 22 | . 1 . 3 . . . 10 8 Detach 9 | . . . 1 . 1 . 4 3 Swap 34 | . 4 1 17 1 . 2 9 . Drop 53 | . 3 . 21 1 4 . 13 11 Fire 246 | . 20 10 117 3 . 21 61 14 Melee 64 | . . . . . . . 41 23 Ram . | . . . . . . . . . Kick . | . . . . . . . . . Crush 3 | . . . 1 . . 2 . . Escape Stasis . | . . . . . . . . . Rewire . | . . . . . . . . . Trap . | . . . . . . . . . Miscellaneous . | . . . . . . . . . Route ------- -11/Scrapyard -10/Materials (discovered 5 exits: *Mat x3 / [*Min] / [*Sub]) -10/Mines -9/Materials (discovered 4 exits: *Mat x2 / [*Min] / *Sto) -9/Mines (discovered 2 exits: *Mat / *Exi) -9/Exiles -8/Mines -8/Materials (discovered 2 exits: *Fac x2) -7/Factory (discovered 1 exit: [*Low]) History --------- Turn | Location | Event 18 | -11/Scrapyard | Discovered new exit (range 16) 68 | -11/Scrapyard | Entered Materials 69 | -10/Materials | Met a group of wandering Federalists 93 | -10/Materials | Central database locked down 287 | -10/Materials | Discovered new exit (range 13) 303 | -10/Materials | Build established: Mutant 434 | -10/Materials | Discovered new exit (range 16) 684 | -10/Materials | Discovered new exit (range 8) 795 | -10/Materials | Discovered new exit (range 16) 1469 | -10/Materials | Discovered new exit (range 11) 1657 | -10/Materials | Entered Mines 2008 | -10/Mines | Assembled infested the area 2013 | -10/Mines | Assisted by a Guerilla fighting off Assembled 2072 | -10/Mines | Discovered new exit (range 5) 2079 | -10/Mines | Entered Materials 2079 | -9/Materials | Evolved 2 slots: Propulsion x1, Utility x1 2080 | -9/Materials | Identified exit to Storage 2677 | -9/Materials | Discovered new exit (range 12) 2983 | -9/Materials | Discovered new exit (range 15) 3266 | -9/Materials | Build established: Scavenger-Mutant 3534 | -9/Materials | Discovered new exit (range 16) 3990 | -9/Materials | Entered Mines 4271 | -9/Mines | Met a Derelict testing a Signal Generator 4461 | -9/Mines | Learned location of 1 exit from Lower Caves 4504 | -9/Mines | A weapon hastily lodged in a ceiling crevice suddenly fell to the ground 4562 | -9/Mines | Discovered new exit (range 15) 4574 | -9/Mines | Learned location of Storage (-9) 4712 | -9/Mines | Deemed a non-threat by the Exiles lab entrance 4714 | -9/Mines | Discovered new exit (range 5) 4720 | -9/Mines | Entered Exiles 4720 | -9/Exiles | Accompanied by 3 allies 4750 | -9/Exiles | Led the pair of lost Derelicts to a safe place 4760 | -9/Exiles | Met 8R-AWN 4786 | -9/Exiles | Met EX-HEX 4840 | -9/Exiles | Met EX-BIN 4860 | -9/Exiles | Aligned with FarCom system 4861 | -9/Exiles | Given EX-Vault access code 4903 | -9/Exiles | Opened EX-Vault 4914 | -9/Exiles | Found Prototype Energy Cannon 4914 | -9/Exiles | Identified YOLO Cannon 4953 | -9/Exiles | Warned to stay clear of 0b10 Research branches 4975 | -9/Exiles | Exiles lab attacked by MAIN.C 5057 | -9/Exiles | Discovered new exit (range 14) 5076 | -9/Exiles | Left Exiles lab with YOLO Cannon 5076 | -9/Exiles | Entered Mines 5076 | -8/Mines | Accompanied by 1 ally 5314 | -8/Mines | Found a Scrap Suit stashed away for nefarious purposes 6042 | -8/Mines | Discovered new exit (range 5) 6057 | -8/Mines | Entered Materials 6057 | -8/Materials | Evolved 2 slots: Propulsion x1, Utility x1 6354 | -8/Materials | Discovered new exit (range 15) 6950 | -8/Materials | Lost 3 parts (2n1w) 7219 | -8/Materials | Build established: Mutant 7753 | -8/Materials | Discovered new exit (range 8) 7976 | -8/Materials | System corruption reached 10% 8015 | -8/Materials | Build established: Skirmisher 8857 | -8/Materials | First assault squad dispatched 8869 | -8/Materials | Entered Factory 8869 | -7/Factory | Evolved 2 slots: Utility x2 9109 | -7/Factory | Discovered new exit (range 7) 9173 | -7/Factory | Build established: Hacker-Scout 9713 | -7/Factory | Core integrity fell below 50% 9719 | -7/Factory | Self-destructed Last Messages --------------- 09678_ K-01 Serf collects debris. 09694_ Construction Platform disabled. 09700_ Airjet destroyed. 09702_ U-05 Engineer builds a Door. 09702_ G-47 Trooper suffers critical hit (Burn). 09706_ System corrupted: Matter fused (-6). 09706_ G-47 Trooper destroyed. 09706_ Rocket Launcher destroyed. 09706_ System Shield destroyed. 09706_ U-05 Engineer lays Concrete. 09709_ U-05 Engineer builds a Wall. 09713_ U-05 Engineer lays Concrete. 09714_ Acquired Shock Rifle. 09715_ The unstable cave ceiling collapses. 09715_ U-05 Engineer lays Concrete. 09716_ The unstable cave ceiling collapses. 09716_ U-05 Engineer lays Concrete. 09717_ U-05 Engineer builds a Wall. 09719_ Shock Rifle destroyed. 09719_ Imp. Light Armor Plating destroyed. Map ----- +----------------------------------------------------+ | ???????????????????????????????????? ??? ##???? | | ???????????????????????????????????? ??? ##???? | | ???????????????????????????????????? ??? ##???? | | ???????????????????????????????????"" """ ##???? | | ???????????????????????????????????"" """ ##???? | | ???????????????????????????????????"" """ ##???? | | ???????????????????????????????????? ##???? | | ??????????????????????????????????? ###### | | ??????????????????????????########### ###### | | ??????????????????????????# # | | ??????????????????????????# # | | ??????????????????????????# # | | ??????????????????????????# # | | ???????????####+##????????# # ? | | ???????????# ????????# " = # ???? | | ???????????# ???????# """ # ?????? | | ???????????# ???????# # ##??????? | | ???????????# ?############+### ##??????? | | ???????????# ?# ] # ##??????? | | ???????????# # # ##### ##??????? | | ?????????????? # """"""" + ##### ##??????? | | ???????????????? """""""u# ##?## ##??????? | | ??????????????????# g """ # ##### ######### | | ??????????????????# g "" #####+######### | | ??????????????????# % Y #### | | ??????????????????# @ #### | | ??????????????????# # #### """ """ " | | ?????????????? # ####! """ """ " | | ????????????# #""" # ### """ """ " | | ????????????# #"Y # ### | | ????????????# ?#""" + ] + """ """ " | | ????????????#########?# # ### """ """ " | | ??????????????????????# # ### """ """ " | | ??????????????????????# ### ##### | | ??????????????????????########### ################ | | ????????????????????????????????? ???######### # | | ????????????????????????????????? ???????????????? | | ????????????????????????????????? ???????????????? | | ?????????????????????????????????????????????????? | | ?????????????????????????????????????????????????? | | ?????????????????????????????????????????????????? | | ?????????????????????????????????????????????????? | | ?????????????????????????????????????????????????? | | ?????????????????????????????????????????????????? | | ?????????????????????????????????????????????????? | | ?????????????????????????????????????????????????? | | ?????????????????????????????????????????????????? | | ?????????????????????????????????????????????????? | | ?????????????????????????????????????????????????? | | ?????????????????????????????????????????????????? | +----------------------------------------------------+ Best States ------------- Heat Dissipation 61 Energy Generation 15 Energy Capacity 265 Matter Stores 300 Matter Capacity 300 Sight Range 20 Terrain Scan Density 10 Armor Coverage 600 Evasion (%) 61 Recoil Reduction 4 Offensive Hacking 10 Defensive Hacking 10 Item Schematics ----------------- Hvy. Armor Plating | -9/Materials | Scanalyzed Adv. Treads | -8/Materials | Scanalyzed Robot Schematics ------------------ None Fabricated ------------ Nothing Repaired ---------- Nothing Studied --------- None Alien Tech Used ----------------- None Achievements -------------- None Challenges ------------ None Game ------ Seed CoreEmergencyExtractor Manual? 0 Play Time 01:17:41 Cumulative 39.6 hours Start 2026.09.03 @ 15:48:39 End 2026.09.03 @ 17:27:31 Sessions 1 Manual Loads 0 Difficulty Rogue Special Mode None Game No. 44 Rogue 41 Adventurer 3 Explorer 0 Win Type - Total 0 Types 0/0/0/0/0/0/0/0/0/0 Lore% 19 Gallery% 29 Achievement% 24 Wizard Run 0 Options --------- Layout 0 ASCII 0 Keyboard 0 Movement Numpad Keybinds 0 Fullscreen 1 Font 18/SmallcapsGlow Map View 76x50 Zoom Use 0% Tactical HUD 1 Map Filters NONE Filters NONE Steam 1 RUN: 24f0836b-688b-4776-88e9-aa9d849821d4